fUST/lending_fUST_20240811
["ID","MTS","AMOUNT","RATE_DAILY","PERIOD"]
[334620267,1723355439293,-404.08727484,0.00018969,2]
[334620268,1723355439302,-522.80309354,0.00018989,2]
[334620269,1723355439313,-1000.0,0.00019,19]
[334620270,1723355439323,-6875.96457227,0.00019102,2]
[334620271,1723355439333,-80848.9458534,0.00019167,2]
[334620272,1723355439343,-20777.37607493,0.00019177,2]
[334620273,1723355439355,-2141.01768748,0.00019177,2]
[334620274,1723355439365,-1091.84231945,0.00019177,2]
[334620275,1723355439375,-156.87111249,0.00019177,2]
[334620276,1723355439384,-329.5511926,0.00019178,2]
[334620277,1723355439393,-155.1506605,0.00019216,2]
[334620278,1723355439402,-153.6873959,0.00019216,2]
[334620279,1723355439412,-302.9503492,0.00019216,2]
[334620280,1723355439422,-539.5567412,0.00019216,2]
[334620281,1723355439431,-418.0855831,0.00019216,2]
[334620282,1723355439440,-294.6277914,0.00019216,2]
[334620283,1723355439451,-153.0,0.00019216,2]
[334620284,1723355439461,-207.2629816,0.00019216,2]
[334620285,1723355439470,-294.6834504,0.00019216,2]
[334620286,1723355439479,-306.0,0.00019216,2]
[334620287,1723355439489,-207.2629816,0.00019216,2]
[334620288,1723355439503,-153.0,0.00019216,2]
[334620289,1723355439513,-207.2629816,0.00019216,2]
[334620290,1723355439523,-1001.45167858,0.00019246,2]
[334620291,1723355439532,-4868.99367493,0.00019248,2]
[334620292,1723355439542,-153.0,0.00019256,2]
[334620293,1723355439552,-413.29975831,0.00019256,2]
[334620294,1723355439561,-153.0,0.00019257,2]
[334620295,1723355439571,-153.0,0.00019257,2]
[334620296,1723355439581,-153.0,0.00019257,2]
[334620297,1723355439590,-153.0,0.00019257,2]
[334620298,1723355439599,-153.0,0.00019257,2]
[334620299,1723355439608,-153.0,0.00019257,2]
[334620300,1723355439618,-153.0,0.00019257,2]
[334620301,1723355439627,-153.0,0.00019257,2]
[334620302,1723355439637,-167.0,0.00019301,2]
[334620303,1723355439646,-543.53411254,0.00019451,2]
[334620304,1723355439656,-187.38318061,0.00019451,2]
[334620306,1723355439665,-288.02845211,0.00019451,2]
[334620308,1723355439676,-157.76480899,0.00019451,2]
[334620309,1723355439687,-154.76012181,0.00019477,2]
[334620310,1723355439696,-154.76784823,0.00019477,2]
[334620311,1723355439708,-180.63105164,0.00019477,2]
[334620312,1723355439718,-540.58857901,0.00019477,2]
[334620313,1723355439729,-816.94684465,0.00019477,4]
[334620314,1723355439739,-297.12317978,0.00019497,2]
[334620315,1723355439749,-151.0,0.0001951,2]
[334620316,1723355439761,-728.15079492,0.00019547,2]
[334620317,1723355439771,-728.15079492,0.00019547,2]
[334620318,1723355439782,-810.66153205,0.00019547,2]
[334620319,1723355439791,-932.99527997,0.00019547,2]
[334620320,1723355439800,-4868.99367493,0.00019689,2]
[334620321,1723355439809,-151.0,0.00019717,2]
[334620322,1723355439819,-160.575813,0.00019743,2]
[334620323,1723355439830,-220.780169,0.00019743,2]
[334620324,1723355439839,-164.967543,0.00019743,2]
[334620325,1723355439848,-161.765437,0.00019743,2]
[334620326,1723355439858,-174.918563,0.00019743,2]
[334620327,1723355439867,-4868.99367493,0.00019865,2]
[334620328,1723355439876,-174.58831304,0.000199,2]
[334620329,1723355439887,-151.0,0.00019923,2]
[334620330,1723355439897,-1990.67889906,0.0001993,2]
[334620331,1723355439907,-80848.9458534,0.0001999,2]
[334620332,1723355439918,-932.99527997,0.00019999,2]
[334620333,1723355439930,-601.1945502,0.00019999,2]
[334620334,1723355439941,-154.76784823,0.00019999,2]
[334620335,1723355439954,-414.28019691,0.00019999,2]
[334620336,1723355439965,-31912.31390992,0.0002,2]
[334620347,1723355442736,-532.72454116,0.00018701,2]
[334620348,1723355442746,-543.53411254,0.00019256,2]
[334620349,1723355442756,-154.76784823,0.00019547,2]
[334620350,1723355442766,-4375.12100803,0.0002,2]
[334620351,1723355442777,-435.0,0.0002,2]
[334620352,1723355442787,-156.5036659,0.0002,2]
[334620353,1723355442799,-150.112235,0.0002,2]
[334620354,1723355442808,-1094.46,0.0002,2]
[334620355,1723355442817,-222.78569548,0.0002,2]
[334620356,1723355442826,-158.35455422,0.0002,2]
[334620357,1723355442837,-1000.0,0.0002,20]
[334620358,1723355442846,-1447.85335853,0.0002,2]
[334620359,1723355442855,-155.0327429,0.0002,2]
[334620360,1723355442865,-428.26090421,0.0002,2]
[334620361,1723355442874,-337.57235764,0.0002,2]
[334620362,1723355442884,-294.37791673,0.0002,2]
[334620363,1723355442893,-151.673082,0.0002003,2]
[334620364,1723355442903,-153.818964,0.0002003,2]
[334620365,1723355442912,-205.504568,0.0002003,2]
[334620366,1723355442921,-151.0,0.0002003,2]
[334620367,1723355442930,-153.0,0.00020038,2]
[334620368,1723355442941,-207.2629816,0.00020038,2]
[334620369,1723355442950,-207.3044688,0.00020038,2]
[334620370,1723355442960,-306.0,0.00020038,2]
[334620371,1723355442969,-153.0,0.00020038,2]
[334620372,1723355442979,-153.0,0.00020038,2]
[334620373,1723355442988,-294.6277914,0.00020038,2]
[334620374,1723355442996,-294.6277914,0.00020038,2]
[334620375,1723355443006,-294.6277914,0.00020038,2]
[334620377,1723355443015,-294.6277914,0.00020038,2]
[334620378,1723355443025,-294.6277914,0.00020038,2]
[334620379,1723355443034,-294.6277914,0.00020038,2]
[334620380,1723355443044,-175.475518,0.00020072,2]
[334620381,1723355443054,-151.0,0.0002013,2]
[334620382,1723355443063,-173.866967,0.00020237,2]
[334620383,1723355443072,-161.765437,0.00020237,2]
[334620384,1723355443082,-174.918563,0.00020237,2]
[334620385,1723355443099,-80848.9458534,0.0002026,2]
[334620386,1723355443108,-250.0,0.0002027,2]
[334620387,1723355443118,-9430.85260519,0.0002027,2]
[334620388,1723355443127,-20995.11417515,0.0002027,2]
[334620389,1723355443136,-4185.35085903,0.0002027,2]
[334620390,1723355443146,-183.26546668,0.0002028,2]
[334620391,1723355443155,-159.38116829,0.0002028,2]
[334620392,1723355443165,-251.766322,0.000203,2]
[334620393,1723355443174,-151.0,0.00020336,2]
[334620394,1723355443185,-500.0,0.00020369,7]
[334620395,1723355443194,-500.0,0.00020369,7]
[334620396,1723355443204,-500.0,0.00020369,7]
[334620397,1723355443213,-500.0,0.00020369,7]
[334620398,1723355443222,-500.0,0.00020369,7]
[334620399,1723355443232,-500.0,0.00020369,7]
[334620400,1723355443241,-500.0,0.00020369,7]
[334620401,1723355443251,-500.0,0.00020369,7]
[334620402,1723355443261,-500.0,0.00020369,7]
[334620403,1723355443272,-500.0,0.00020369,7]
[334620404,1723355443282,-500.0,0.00020369,7]
[334620405,1723355443291,-194.17746064,0.00020369,7]
[334620406,1723355443312,-205.28206357,0.00018901,2]
[334620407,1723355443323,-305.82253936,0.00020369,7]
[334620408,1723355443335,-500.0,0.00020369,7]
[334620409,1723355443345,-500.0,0.00020369,7]
[334620410,1723355443357,-500.0,0.00020369,7]
[334620411,1723355443366,-322.31519555,0.00020369,7]
[334620412,1723355443406,-154.76784823,0.00019451,2]
[334620413,1723355443417,-177.68480445,0.00020369,7]
[334620414,1723355443427,-500.0,0.00020369,7]
[334620415,1723355443437,-500.0,0.00020369,7]
[334620416,1723355443447,-500.0,0.00020369,7]
[334620417,1723355443459,-500.0,0.00020369,7]
[334620420,1723355443641,-500.0,0.00020369,7]
[334620421,1723355443664,-500.0,0.00020369,7]
[334620422,1723355443675,-500.0,0.00020369,7]
[334620423,1723355443685,-500.0,0.00020369,7]
[334620424,1723355443699,-500.0,0.00020369,7]
[334620425,1723355443709,-500.0,0.00020369,7]
[334620426,1723355443720,-500.0,0.00020369,7]
[334620427,1723355443730,-500.0,0.00020369,7]
[334620428,1723355443739,-500.0,0.00020369,7]
[334620429,1723355443749,-500.0,0.00020369,7]
[334620430,1723355443758,-325.83,0.00020369,7]
[334620431,1723355443769,-500.0,0.00020369,7]
[334620432,1723355443780,-500.0,0.00020369,7]
[334620433,1723355443790,-500.0,0.00020369,7]
[334620434,1723355443800,-500.0,0.00020369,7]
[334620435,1723355443809,-500.0,0.00020369,7]
[334620436,1723355443820,-500.0,0.00020369,7]
[334620437,1723355443830,-500.0,0.00020369,7]
[334620438,1723355443842,-500.0,0.00020369,7]
[334620439,1723355443854,-500.0,0.00020369,7]
[334620440,1723355443864,-500.0,0.00020369,7]
[334620441,1723355443874,-500.0,0.00020369,7]
[334620442,1723355443884,-500.0,0.00020369,7]
[334620443,1723355443893,-500.0,0.00020369,7]
[334620444,1723355443903,-500.0,0.00020369,7]
[334620445,1723355443915,-500.0,0.00020369,7]
[334620446,1723355443925,-500.0,0.00020369,7]
[334620447,1723355443935,-500.0,0.00020369,7]
[334620448,1723355443945,-500.0,0.00020369,7]
[334620449,1723355443954,-425.40065588,0.00020369,7]
[334620450,1723355443967,-74.59934412,0.00020369,7]
[334620451,1723355443977,-500.0,0.00020369,7]
[334620452,1723355443987,-500.0,0.00020369,7]
[334620453,1723355443997,-500.0,0.00020369,7]
[334620454,1723355444007,-500.0,0.00020369,7]
[334620455,1723355444017,-500.0,0.00020369,7]
[334620456,1723355444026,-500.0,0.00020369,7]
[334620457,1723355444036,-500.0,0.00020369,7]
[334620458,1723355444046,-500.0,0.00020369,7]
[334620459,1723355444056,-500.0,0.00020369,7]
[334620460,1723355444066,-500.0,0.00020369,7]
[334620461,1723355444076,-500.0,0.00020369,7]
[334620462,1723355444087,-500.0,0.00020369,7]
[334620463,1723355444096,-500.0,0.00020369,7]
[334620464,1723355444107,-500.0,0.00020369,7]
[334620465,1723355444116,-500.0,0.00020369,7]
[334620466,1723355444125,-500.0,0.00020369,7]
[334620467,1723355444136,-500.0,0.00020369,7]
[334620468,1723355444146,-500.0,0.00020369,7]
[334620469,1723355444157,-500.0,0.00020369,7]
[334620470,1723355444166,-500.0,0.00020369,7]
[334620471,1723355444175,-500.0,0.00020369,7]
[334620472,1723355444184,-500.0,0.00020369,7]
[334620473,1723355444193,-500.0,0.00020369,7]
[334620474,1723355444203,-368.09,0.00020369,7]
[334620475,1723355444212,-500.0,0.00020369,7]
[334620476,1723355444222,-500.0,0.00020369,7]
[334620477,1723355444231,-500.0,0.00020369,7]
[334620478,1723355444241,-500.0,0.00020369,7]
[334620479,1723355444251,-500.0,0.00020369,7]
[334620480,1723355444261,-500.0,0.00020369,7]
[334620481,1723355444270,-500.0,0.00020369,7]
[334620482,1723355444280,-500.0,0.00020369,7]
[334620483,1723355444290,-500.0,0.00020369,7]
[334620484,1723355444300,-500.0,0.00020369,7]
[334620485,1723355444310,-500.0,0.00020369,7]
[334620486,1723355444321,-500.0,0.00020369,7]
[334620487,1723355444331,-500.0,0.00020369,7]
[334620488,1723355444341,-500.0,0.00020369,7]
[334620489,1723355444351,-500.0,0.00020369,7]
[334620490,1723355444361,-500.0,0.00020369,7]
[334620491,1723355444370,-500.0,0.00020369,7]
[334620492,1723355444379,-500.0,0.00020369,7]
[334620493,1723355444389,-500.0,0.00020369,7]
[334620494,1723355444399,-500.0,0.00020369,7]
[334620495,1723355444413,-151.0,0.00020369,2]
[334620496,1723355444423,-151.0,0.00020369,2]
[334620497,1723355444434,-307.334646,0.00020369,2]
[334620498,1723355444443,-307.334646,0.00020369,2]
[334620499,1723355444452,-151.0,0.00020369,2]
[334620500,1723355444462,-151.0,0.00020369,2]
[334620501,1723355444472,-600.771298,0.00020369,2]
[334620502,1723355444482,-600.771298,0.00020369,2]
[334620503,1723355444493,-327.854346,0.00020369,2]
[334620504,1723355444504,-327.854346,0.00020369,2]
[334620505,1723355444514,-151.0,0.00020369,2]
[334620506,1723355444523,-151.0,0.00020369,2]
[334620507,1723355444533,-151.0,0.00020369,2]
[334620508,1723355444544,-151.0,0.00020369,2]
[334620509,1723355444554,-525.0,0.00020369,2]
[334620510,1723355444563,-525.0,0.00020369,2]
[334620511,1723355444573,-202.975869,0.00020369,2]
[334620512,1723355444584,-202.975869,0.00020369,2]
[334620513,1723355444594,-151.0,0.00020369,2]
[334620514,1723355444603,-151.0,0.00020369,2]
[334620515,1723355444614,-878.677869,0.00020369,2]
[334620516,1723355444623,-878.677869,0.00020369,2]
[334620517,1723355444632,-153.922059,0.00020369,2]
[334620518,1723355444642,-151.0,0.00020369,2]
[334620519,1723355444652,-150.112233,0.000204,4]
[334620520,1723355444661,-150.112233,0.000204,5]
[334620521,1723355444671,-175.475518,0.00020401,2]
[334620522,1723355444680,-507.48,0.00020478,2]
[334620523,1723355444689,-1413.0,0.00020478,2]
[334620524,1723355444699,-150.112233,0.000205,4]
[334620525,1723355444708,-210.86,0.00020542,2]
[334620526,1723355444718,-151.0,0.00020543,2]
[334620527,1723355444727,-500.0,0.00020547,5]
[334620528,1723355444736,-500.0,0.00020547,5]
[334620529,1723355444746,-500.0,0.00020547,5]
[334620530,1723355444755,-500.0,0.00020547,5]
[334620531,1723355444764,-500.0,0.00020547,5]
[334620532,1723355444774,-500.0,0.00020547,5]
[334620533,1723355444783,-500.0,0.00020547,5]
[334620534,1723355444793,-500.0,0.00020547,5]
[334620535,1723355444802,-500.0,0.00020547,5]
[334620536,1723355444811,-500.0,0.00020547,5]
[334620537,1723355444821,-500.0,0.00020547,5]
[334620538,1723355444830,-500.0,0.00020547,5]
[334620539,1723355444842,-500.0,0.00020547,5]
[334620540,1723355444851,-500.0,0.00020547,5]
[334620541,1723355444861,-500.0,0.00020547,5]
[334620542,1723355444870,-500.0,0.00020547,5]
[334620543,1723355444880,-500.0,0.00020547,5]
[334620544,1723355444890,-500.0,0.00020547,5]
[334620545,1723355444899,-500.0,0.00020547,5]
[334620546,1723355444908,-500.0,0.00020547,5]
[334620547,1723355444918,-434.34135534,0.00020547,5]
[334620548,1723355444927,-150.112233,0.000206,5]
[334620549,1723355444937,-9083.98797226,0.000207,2]
[334620550,1723355444946,-3254.81442438,0.000207,2]
[334620551,1723355444955,-3254.81442436,0.000207,2]
[334620552,1723355444965,-3254.81442436,0.000207,2]
[334620553,1723355444974,-3254.81442436,0.000207,2]
[334620554,1723355444983,-150.112233,0.000207,5]
[334620555,1723355444993,-300.412985,0.000207,9]
[334620556,1723355445002,-3302.69949723,0.00020721,2]
[334620572,1723355446093,-500.0,0.00016083,2]
[334620573,1723355446109,-33.811996,0.00016083,2]
[334620574,1723355448352,273.37336231,9.9e-05,2]
[334620575,1723355456623,304.190946,0.00012,2]
[334620576,1723355464189,273.37336231,9.9e-05,2]
[334620577,1723355472673,155.22287942,0.00012,2]
[334620578,1723355473613,190.78249048,0.00015,2]
[334620579,1723355474287,6978.08662013,0.00012,2]
[334620580,1723355475381,9022.93770578,0.00012,2]
[334620581,1723355476242,174.58414756,0.00012,2]
[334620582,1723355476609,1092.45305445,0.00014,2]
[334620583,1723355476696,991.27474568,0.00015,2]
[334620584,1723355477000,1652.49101254,0.00012,2]
[334620585,1723355477092,20777.37607493,0.00012,2]
[334620586,1723355477229,414.92788166,0.00012,2]
[334620587,1723355478316,494.6780177,0.00012,2]
[334620588,1723355479303,154.76784823,0.00012,2]
[334620589,1723355479399,183.26546668,0.00012,2]
[334620590,1723355479591,273.37336231,9.9e-05,2]
[334620591,1723355479723,686.8095988,0.00013,2]
[334620592,1723355480315,319.99782942,0.00012,2]
[334620593,1723355481108,1987.35116007,0.00012,2]
[334620594,1723355481138,153.66652741,0.00012,2]
[334620595,1723355481724,159.38116829,0.00012,2]
[334620596,1723355482508,154.76784823,0.00012,2]
[334620597,1723355483102,532.17909802,0.00012,2]
[334620598,1723355483454,809.5726222,0.00012,2]
[334620599,1723355483687,1162.86940617,0.00012,2]
[334620600,1723355484560,288.02845211,0.00012,2]
[334620601,1723355484962,932.99527997,0.00014545,2]
[334620602,1723355485895,522.64528622,0.00014545,2]
[334620603,1723355485931,180.63105164,0.00012,2]
[334620604,1723355487399,154.76784823,0.00014545,2]
[334620605,1723355488874,194.66795086,0.00014545,2]
[334620606,1723355492484,399.75186133,0.00012,2]
[334620607,1723355493501,413.29975831,0.00012,2]
[334620608,1723355497803,155.30339985,0.00014545,2]
[334620609,1723355497963,209.37253615,0.00014545,2]
[334620610,1723355498052,156.68679737,0.00014545,2]
[334620611,1723355499623,601.1945502,0.00014545,2]
[334620612,1723355510772,157.83841247,0.00014545,2]
[334620613,1723355510918,951.65187642,0.00015,2]
[334620614,1723355512002,500.0,0.0002233,120]
[334620615,1723355512753,500.0,0.0002233,120]
[334620616,1723355513086,20777.37607493,0.00014545,2]
[334620617,1723355513505,500.0,0.0002233,120]
[334620618,1723355513807,251.39871978,0.00014545,2]
[334620619,1723355514267,500.0,0.0002233,120]
[334620620,1723355515030,500.0,0.0002233,120]
[334620621,1723355515370,42377.77535747,0.00014545,2]
[334620622,1723355515784,500.0,0.0002233,120]
[334620623,1723355516244,156.36757405,0.00014545,2]
[334620624,1723355517479,154.77557542,0.00014545,2]
[334620625,1723355518174,912.76636685,0.00015,2]
[334620626,1723355519389,183.26546668,0.00014545,2]
[334620627,1723355521220,231.96457973,0.00014545,2]
[334620628,1723355522519,154.77557542,0.00014545,2]
[334620629,1723355523570,8834.48131506,0.00014545,2]
[334620630,1723355524192,442.95276232,0.00014545,2]
[334620631,1723355525113,273.37336231,9.9e-05,2]
[334620632,1723355525218,414.28019691,0.00014545,2]
[334620633,1723355525722,686.8095988,0.00014545,2]
[334620634,1723355527741,158.48348286,0.00014545,2]
[334620635,1723355528610,454.41705563,0.00014545,2]
[334620636,1723355528665,492.59464676,0.00015,2]
[334620637,1723355530078,215.63838735,0.00014545,2]
[334620638,1723355530427,319.55554237,0.00014545,2]
[334620639,1723355535907,180.63105164,0.00014545,2]
[334620640,1723355536559,286.81530625,0.00014545,2]
[334620641,1723355537733,159.38116829,0.00014545,2]
[334620642,1723355540286,1610.68802731,0.00014545,2]
[334620643,1723355543488,413.29975831,0.00014545,2]
[334620644,1723355543972,277.11671443,0.00014545,2]
[334620648,1723355694596,14663.0,0.00015,2]
[334620649,1723355718087,171.53381,0.00014247,2]
[334620652,1723356079655,887.11,0.00010959,2]
[334620653,1723356152575,253.54,0.00010959,2]
[334620654,1723356163100,211.28,0.00010959,2]
[334620655,1723356173634,176.07,0.00010959,2]
[334620656,1723356184167,880.38,0.00010959,2]
[334620657,1723356229110,569.05372197,9.999e-05,2]
[334620658,1723356233943,157.647059,0.00014744,2]
[334620659,1723356234280,157.647059,0.00014792,2]
[334620660,1723356234481,157.647059,0.0001484,2]
[334620661,1723356234688,157.647059,0.00014888,2]
[334620662,1723356234898,157.647059,0.00014936,2]
[334620663,1723356235118,157.647059,0.00014984,2]
[334620664,1723356245264,154.96685308,0.00013283,2]
[334620665,1723356248198,154.88006174,0.00013283,2]
[334620666,1723356258371,159.233379,0.00014247,2]
[334620768,1723356428976,3000.0,0.00014347,2]
[334620783,1723356564139,-300.0,0.0001503,2]
[334620784,1723356564160,-300.0,0.0001503,2]
[334620785,1723356564181,-157.647059,0.00015032,2]
[334620786,1723356564202,-157.647059,0.0001508,2]
[334620787,1723356564223,-157.647059,0.00015128,2]
[334620788,1723356564247,-157.647059,0.00015176,2]
[334620789,1723356564268,-157.647059,0.00015224,2]
[334620790,1723356564295,-157.647059,0.00015272,2]
[334620791,1723356564321,-157.647059,0.0001532,2]
[334620792,1723356564343,-157.647059,0.00015368,2]
[334620793,1723356564363,-2488.4561038,0.00015413,2]
[334620794,1723356565166,24900.0,0.00014364,2]
[334620795,1723356585729,809.10695268,9.999e-05,2]
[334620799,1723356605769,686.8095988,0.00014999,2]
[334620852,1723356636098,833.90450018,0.00015,2]
[334620908,1723356638505,-157.647059,0.00015417,2]
[334620911,1723356638514,-157.647059,0.00015465,2]
[334620914,1723356638523,-157.647059,0.00015513,2]
[334620917,1723356638532,-648.08039606,0.00015601,2]
[334620920,1723356638542,-558.97842665,0.00015612,2]
[334620925,1723356638567,-89.1019694,0.00015612,2]
[334620927,1723356638576,-648.08039605,0.00015623,2]
[334620929,1723356638586,-648.08039605,0.00015633,2]
[334620931,1723356638595,-648.08039605,0.00015644,2]
[334620933,1723356638605,-300.0,0.00015699,2]
[334620935,1723356638614,-500.0,0.000157,2]
[334620937,1723356638623,-500.0,0.000157,2]
[334620939,1723356638633,-500.0,0.000157,2]
[334620941,1723356638642,-500.0,0.000157,2]
[334620943,1723356638652,-331.87999962,0.000157,2]
[334620945,1723356638661,-500.0,0.000157,2]
[334620947,1723356638671,-500.0,0.000157,2]
[334620949,1723356638680,-500.0,0.000157,2]
[334620951,1723356638690,-500.0,0.000157,2]
[334620953,1723356638699,-500.0,0.000157,2]
[334620955,1723356638708,-248.143943,0.000157,2]
[334620957,1723356638717,-293.20913885,0.000157,2]
[334620959,1723356638726,-500.0,0.000157,2]
[334620961,1723356638736,-536.02607522,0.000157,2]
[334620963,1723356638745,-500.0,0.000157,2]
[334620965,1723356638755,-250.93125227,0.000157,2]
[334620967,1723356638766,-500.0,0.000157,2]
[334620969,1723356638775,-500.0,0.000157,2]
[334620971,1723356638784,-425.41515656,0.000157,2]
[334620973,1723356638794,-500.0,0.000157,2]
[334620975,1723356638802,-500.0,0.000157,2]
[334620977,1723356638811,-500.0,0.000157,2]
[334620979,1723356638820,-500.0,0.000157,2]
[334620981,1723356638831,-500.0,0.000157,2]
[334620983,1723356638840,-500.0,0.000157,2]
[334620985,1723356638849,-500.0,0.000157,2]
[334620987,1723356638858,-500.0,0.000157,2]
[334620989,1723356638867,-500.0,0.000157,2]
[334620991,1723356638877,-500.0,0.000157,2]
[334620993,1723356638886,-500.0,0.000157,2]
[334620995,1723356638900,-500.0,0.000157,2]
[334620997,1723356638909,-500.0,0.000157,2]
[334620999,1723356638918,-500.0,0.000157,2]
[334621001,1723356638928,-500.0,0.000157,2]
[334621003,1723356638938,-500.0,0.000157,2]
[334621005,1723356638947,-500.0,0.000157,2]
[334621007,1723356638957,-500.0,0.000157,2]
[334621009,1723356638967,-500.0,0.000157,2]
[334621011,1723356638977,-500.0,0.000157,2]
[334621013,1723356638987,-500.0,0.000157,2]
[334621015,1723356638996,-500.0,0.000157,2]
[334621018,1723356639006,-500.0,0.000157,2]
[334621020,1723356639016,-500.0,0.000157,2]
[334621022,1723356639025,-500.0,0.000157,2]
[334621024,1723356639034,-500.0,0.000157,2]
[334621026,1723356639044,-500.0,0.000157,2]
[334621028,1723356639054,-500.0,0.000157,2]
[334621030,1723356639065,-500.0,0.000157,2]
[334621032,1723356639074,-520.15217803,0.000157,2]
[334621034,1723356639088,-500.0,0.000157,2]
[334621037,1723356639100,-500.0,0.000157,2]
[334621039,1723356639109,-500.0,0.000157,2]
[334621041,1723356639120,-500.0,0.000157,2]
[334621043,1723356639131,-500.0,0.000157,2]
[334621045,1723356639142,-500.0,0.000157,2]
[334621047,1723356639152,-500.0,0.000157,2]
[334621049,1723356639161,-500.0,0.000157,2]
[334621052,1723356639172,-500.0,0.000157,2]
[334621054,1723356639181,-500.0,0.000157,2]
[334621055,1723356639190,-500.0,0.000157,2]
[334621057,1723356639200,-500.0,0.000157,2]
[334621060,1723356639210,-500.0,0.000157,2]
[334621062,1723356639219,-500.0,0.000157,2]
[334621064,1723356639229,-500.0,0.000157,2]
[334621066,1723356639239,-500.0,0.000157,2]
[334621068,1723356639248,-724.09887164,0.000157,2]
[334621070,1723356639258,-724.09887164,0.000157,2]
[334621072,1723356639267,-724.09887164,0.000157,2]
[334621074,1723356639277,-724.09887164,0.000157,2]
[334621076,1723356639286,-724.09887164,0.000157,2]
[334621078,1723356639296,-724.09887164,0.000157,2]
[334621080,1723356639305,-724.09887164,0.000157,2]
[334621082,1723356639314,-724.09887164,0.000157,2]
[334621084,1723356639324,-724.09887164,0.000157,2]
[334621086,1723356639335,-724.09887164,0.000157,2]
[334621088,1723356639344,-724.09887164,0.000157,2]
[334621090,1723356639354,-724.09887164,0.000157,2]
[334621092,1723356639364,-724.09887164,0.000157,2]
[334621094,1723356639373,-724.09887164,0.000157,2]
[334621096,1723356639384,-724.09887164,0.000157,2]
[334621099,1723356639395,-724.09887164,0.000157,2]
[334621101,1723356639405,-724.09887164,0.000157,2]
[334621103,1723356639414,-724.09887164,0.000157,2]
[334621105,1723356639424,-724.09887164,0.000157,2]
[334621107,1723356639434,-724.09887164,0.000157,2]
[334621109,1723356639443,-724.09887164,0.000157,2]
[334621111,1723356639453,-724.09887164,0.000157,2]
[334621113,1723356639463,-724.09887164,0.000157,2]
[334621115,1723356639472,-724.09887164,0.000157,2]
[334621117,1723356639481,-724.09887164,0.000157,2]
[334621119,1723356639491,-724.09887164,0.000157,2]
[334621121,1723356639501,-724.09887164,0.000157,2]
[334621123,1723356639510,-724.09887164,0.000157,2]
[334621125,1723356639521,-736.38420882,0.000157,2]
[334621127,1723356639531,-736.38420882,0.000157,2]
[334621129,1723356639540,-736.38420882,0.000157,2]
[334621131,1723356639550,-736.38420882,0.000157,2]
[334621133,1723356639559,-736.38420882,0.000157,2]
[334621135,1723356639569,-736.38420882,0.000157,2]
[334621137,1723356639580,-736.38420882,0.000157,2]
[334621139,1723356639590,-736.38420882,0.000157,2]
[334621141,1723356639600,-736.38420882,0.000157,2]
[334621143,1723356639610,-736.38420882,0.000157,2]
[334621145,1723356639619,-736.38420882,0.000157,2]
[334621146,1723356639629,-736.38420882,0.000157,2]
[334621147,1723356639638,-736.38420882,0.000157,2]
[334621148,1723356639647,-736.38420882,0.000157,2]
[334621149,1723356639657,-736.38420882,0.000157,2]
[334621150,1723356639666,-736.38420882,0.000157,2]